fUST/lending_fUST_20250208
["ID","MTS","AMOUNT","RATE_DAILY","PERIOD"]
[352267144,1739021452533,-500.0,0.00011643,2]
[352267146,1739021452543,-3928.7,0.00011643,2]
[352267148,1739021452552,-9707.2,0.00011643,2]
[352267150,1739021452562,-500.0,0.00011643,2]
[352267152,1739021452572,-857.2,0.00011643,2]
[352267155,1739021452583,-1572.73,0.00011643,2]
[352267157,1739021452596,-1321.91,0.00011643,2]
[352267159,1739021452605,-151.0,0.00011643,2]
[352267161,1739021452615,-1753.9,0.00011643,2]
[352267163,1739021452624,-151.0,0.00011643,2]
[352267165,1739021452634,-500.0,0.00011643,2]
[352267167,1739021452643,-500.0,0.00011643,2]
[352267169,1739021452654,-674.63,0.00011643,2]
[352267171,1739021452664,-500.0,0.00011643,2]
[352267173,1739021452673,-500.0,0.00011643,2]
[352267175,1739021452684,-685.86,0.00011643,2]
[352267177,1739021452694,-151.0,0.00011643,2]
[352267179,1739021452704,-500.0,0.00011643,2]
[352267181,1739021452713,-4420.34,0.00011643,2]
[352267183,1739021452723,-1224.62,0.00011643,2]
[352267185,1739021452732,-516.85427274,0.00011643,2]
[352267187,1739021452741,-500.0,0.00011643,2]
[352267189,1739021452751,-1144.81,0.00011643,2]
[352267191,1739021452760,-16756.56,0.00011643,2]
[352267193,1739021452769,-1816.02,0.00011643,2]
[352267195,1739021452779,-3385.47,0.00011643,2]
[352267197,1739021452789,-500.0,0.00011643,2]
[352267199,1739021452798,-372.0640836,0.00011661,2]
[352267201,1739021452808,-1000.0,0.00011674,2]
[352267203,1739021452818,-307.724665,0.0001168,2]
[352267205,1739021452827,-307.724665,0.0001168,2]
[352267207,1739021452837,-151.0,0.00011736,2]
[352267209,1739021452848,-151.0,0.00011736,2]
[352267211,1739021452858,-151.0,0.00011736,2]
[352267213,1739021452867,-150.22,0.00011737,2]
[352267215,1739021452877,-150.0,0.00011737,2]
[352267217,1739021452887,-248.318,0.00011737,2]
[352267219,1739021452899,-150.204,0.00011737,2]
[352267221,1739021452909,-574.198162,0.0001175,2]
[352267223,1739021452918,-675.054219,0.0001175,2]
[352267226,1739021452928,-675.054219,0.0001175,2]
[352267228,1739021452937,-151.0,0.0001175,2]
[352267229,1739021452946,-539.973,0.0001175,2]
[352267231,1739021452956,-1978.517,0.0001175,2]
[352267234,1739021452965,-2298.991,0.0001175,2]
[352267236,1739021452975,-396.0,0.0001175,2]
[352267238,1739021452984,-404.557,0.0001175,2]
[352267240,1739021452994,-2500.0,0.00011771,2]
[352267242,1739021453004,-155.0,0.00011774,2]
[352267244,1739021453013,-155.0,0.00011774,2]
[352267246,1739021453023,-156.99,0.00011774,2]
[352267248,1739021453032,-545.98716384,0.00011778,2]
[352267250,1739021453041,-369.66172585,0.00011779,2]
[352267252,1739021453051,-151.0,0.0001178,2]
[352267254,1739021453061,-151.0,0.0001178,2]
[352267256,1739021453071,-151.0,0.0001178,2]
[352267258,1739021453081,-153.543592,0.0001178,2]
[352267260,1739021453092,-151.0,0.0001178,2]
[352267262,1739021453102,-151.0,0.0001178,2]
[352267264,1739021453111,-151.0,0.0001178,2]
[352267266,1739021453121,-229.462065,0.0001178,2]
[352267269,1739021453131,-229.462065,0.0001178,2]
[352267271,1739021453141,-151.0,0.0001178,2]
[352267273,1739021453150,-2500.0,0.0001178,2]
[352267275,1739021453160,-151.0,0.0001178,2]
[352267277,1739021453170,-151.0,0.0001178,2]
[352267279,1739021453179,-290.804963,0.0001178,2]
[352267281,1739021453189,-290.804963,0.0001178,2]
[352267282,1739021453199,-307.724665,0.0001178,2]
[352267283,1739021453213,-307.724665,0.0001178,2]
[352267284,1739021453223,-219.329014,0.0001178,2]
[352267285,1739021453232,-219.329014,0.0001178,2]
[352267286,1739021453241,-151.0,0.0001178,2]
[352267287,1739021453251,-162.959556,0.0001178,2]
[352267288,1739021453261,-162.959556,0.0001178,2]
[352267289,1739021453271,-151.0,0.0001178,2]
[352267290,1739021453279,-151.0,0.0001178,2]
[352267291,1739021453290,-966.810207,0.0001178,2]
[352267292,1739021453299,-966.810207,0.0001178,2]
[352267293,1739021453308,-151.0,0.0001178,2]
[352267294,1739021453317,-500.0,0.0001178,2]
[352267295,1739021453326,-153.197476,0.0001178,2]
[352267296,1739021453335,-153.197476,0.0001178,2]
[352267297,1739021453346,-151.0,0.0001178,2]
[352267298,1739021453355,-239.23561521,0.0001178,2]
[352267299,1739021453364,-500.0,0.0001178,2]
[352267301,1739021453373,-187.597274,0.0001178,2]
[352267303,1739021453383,-187.597274,0.0001178,2]
[352267305,1739021453392,-151.0,0.0001178,2]
[352267307,1739021453402,-500.0,0.0001178,2]
[352267309,1739021453412,-151.0,0.0001178,2]
[352267311,1739021453421,-500.0,0.0001178,2]
[352267313,1739021453430,-500.0,0.0001178,2]
[352267315,1739021453439,-500.0,0.0001178,2]
[352267317,1739021453449,-500.0,0.0001178,2]
[352267319,1739021453458,-500.0,0.0001178,2]
[352267321,1739021453468,-688.06,0.0001178,2]
[352267323,1739021453478,-500.0,0.0001178,2]
[352267325,1739021453487,-393.296143,0.0001178,2]
[352267328,1739021453497,-500.0,0.0001178,2]
[352267329,1739021453506,-393.296143,0.0001178,2]
[352267331,1739021453515,-500.0,0.0001178,2]
[352267334,1739021453525,-709.863612,0.0001178,2]
[352267335,1739021453534,-709.863612,0.0001178,2]
[352267338,1739021453544,-574.198162,0.0001178,2]
[352267340,1739021453553,-500.0,0.0001178,2]
[352267341,1739021453563,-675.054219,0.0001178,2]
[352267344,1739021453573,-675.054219,0.0001178,2]
[352267346,1739021453582,-500.0,0.0001178,2]
[352267348,1739021453593,-817.65,0.0001178,2]
[352267350,1739021453603,-395.25090178,0.0001178,2]
[352267352,1739021453613,-500.0,0.0001178,2]
[352267354,1739021453622,-900.15,0.0001178,2]
[352267356,1739021453631,-500.0,0.0001178,2]
[352267358,1739021453640,-495.23990772,0.0001178,2]
[352267360,1739021453650,-1194.88,0.0001178,2]
[352267362,1739021453659,-151.0,0.0001178,2]
[352267364,1739021453668,-1460.56,0.0001178,2]
[352267366,1739021453678,-354.290364,0.0001178,2]
[352267368,1739021453687,-1479.66,0.0001178,2]
[352267370,1739021453697,-354.290364,0.0001178,2]
[352267372,1739021453706,-614.9,0.0001178,2]
[352267374,1739021453716,-695.27,0.0001178,2]
[352267376,1739021453725,-500.0,0.0001178,2]
[352267378,1739021453735,-754.13,0.0001178,2]
[352267380,1739021453744,-500.0,0.0001178,2]
[352267382,1739021453753,-401.871541,0.0001178,2]
[352267384,1739021453762,-401.871541,0.0001178,2]
[352267386,1739021453772,-315.26828322,0.0001178,2]
[352267388,1739021453781,-1078.76,0.0001178,2]
[352267390,1739021453790,-372.096221,0.0001178,2]
[352267392,1739021453800,-500.0,0.0001178,2]
[352267394,1739021453809,-372.096221,0.0001178,2]
[352267395,1739021453818,-500.0,0.0001178,2]
[352267397,1739021453827,-500.0,0.0001178,2]
[352267399,1739021453836,-500.0,0.0001178,2]
[352267402,1739021453847,-500.0,0.0001178,2]
[352267404,1739021453856,-1502.22,0.0001178,2]
[352267405,1739021453865,-500.0,0.0001178,2]
[352267408,1739021453875,-716.35,0.0001178,2]
[352267409,1739021453884,-500.0,0.0001178,2]
[352267412,1739021453894,-500.0,0.0001178,2]
[352267414,1739021453903,-533.67,0.0001178,2]
[352267416,1739021453912,-500.0,0.0001178,2]
[352267418,1739021453923,-1338.69,0.0001178,2]
[352267420,1739021453932,-500.0,0.0001178,2]
[352267422,1739021453942,-633.45,0.0001178,2]
[352267424,1739021453951,-500.0,0.0001178,2]
[352267425,1739021453966,-500.0,0.0001178,2]
[352267427,1739021453976,-1067.98,0.0001178,2]
[352267429,1739021453985,-500.0,0.0001178,2]
[352267432,1739021453995,-500.0,0.0001178,2]
[352267433,1739021454004,-1176.62,0.0001178,2]
[352267436,1739021454014,-500.0,0.0001178,2]
[352267437,1739021454023,-465.31961,0.0001178,2]
[352267440,1739021454032,-465.31961,0.0001178,2]
[352267442,1739021454042,-332.256534,0.0001178,2]
[352267444,1739021454051,-332.256534,0.0001178,2]
[352267446,1739021454059,-500.0,0.0001178,2]
[352267447,1739021454069,-293.405577,0.0001178,2]
[352267449,1739021454078,-801.71,0.0001178,2]
[352267452,1739021454087,-293.405577,0.0001178,2]
[352267454,1739021454097,-769.56,0.0001178,2]
[352267455,1739021454105,-500.0,0.0001178,2]
[352267457,1739021454115,-500.0,0.0001178,2]
[352267459,1739021454124,-529.22,0.0001178,2]
[352267461,1739021454133,-287.650611,0.0001178,2]
[352267463,1739021454142,-1148.87,0.0001178,2]
[352267465,1739021454151,-367.881396,0.0001178,2]
[352267467,1739021454160,-500.0,0.0001178,2]
[352267469,1739021454169,-367.881396,0.0001178,2]
[352267471,1739021454179,-500.0,0.0001178,2]
[352267473,1739021454189,-3345.11,0.0001178,2]
[352267475,1739021454199,-1237.17,0.0001178,2]
[352267477,1739021454212,-500.0,0.0001178,2]
[352267479,1739021454222,-500.0,0.0001178,2]
[352267482,1739021454231,-500.0,0.0001178,2]
[352267484,1739021454241,-1770.35,0.0001178,2]
[352267485,1739021454252,-1017.43,0.0001178,2]
[352267488,1739021454262,-500.0,0.0001178,2]
[352267490,1739021454271,-500.0,0.0001178,2]
[352267492,1739021454285,-3357.8,0.0001178,2]
[352267494,1739021454295,-151.0,0.0001178,2]
[352267496,1739021454305,-504.381993,0.0001178,2]
[352267498,1739021454315,-500.0,0.0001178,2]
[352267499,1739021454324,-500.0,0.0001178,2]
[352267502,1739021454333,-5769.76,0.0001178,2]
[352267503,1739021454347,-433.48761858,0.0001178,2]
[352267507,1739021454372,-66.51238142,0.0001178,2]
[352267509,1739021454382,-500.0,0.0001178,2]
[352267511,1739021454391,-865.58,0.0001178,2]
[352267513,1739021454401,-625.03,0.0001178,2]
[352267515,1739021454411,-1339.78,0.0001178,2]
[352267517,1739021454420,-500.0,0.0001178,2]
[352267519,1739021454430,-500.0,0.0001178,2]
[352267522,1739021454440,-500.0,0.0001178,2]
[352267524,1739021454449,-1594.22,0.0001178,2]
[352267526,1739021454459,-500.0,0.0001178,2]
[352267528,1739021454468,-2225.32995879,0.0001178,2]
[352267570,1739021454859,-1144.09,0.00010958,2]
[352267572,1739021454869,-500.0,0.00011095,2]
[352267573,1739021454878,-1144.09,0.00011095,2]
[352267575,1739021454888,-500.0,0.00011232,2]
[352267578,1739021454898,-1144.09,0.00011232,2]
[352267579,1739021454907,-128.49418114,0.00011369,2]
[352267582,1739021454918,-371.50581886,0.00011369,2]
[352267584,1739021454927,-425.7715578,0.00011369,2]
[352267586,1739021454937,-1144.09,0.00011369,2]
[352267588,1739021454947,-500.0,0.00011506,2]
[352267590,1739021454956,-723.7137575,0.00011506,2]
[352267593,1739021454976,-420.3762425,0.00011506,2]
[352267595,1739021454986,-500.0,0.00011643,2]
[352267597,1739021454995,-2338.02004121,0.0001178,2]
[352267599,1739021455005,-4424.54300644,0.0001178,2]
[352267625,1739021455247,-1063.79863551,0.00011643,2]
[352267627,1739021455262,-80.29136449,0.00011643,2]
[352267629,1739021455272,-419.71863551,0.0001178,2]
[352267632,1739021455283,-10150.46438921,0.0001178,2]
[352267634,1739021455295,-288.47150204,0.0001178,2]
[352267636,1739021455307,-34575.3824668,0.0001178,2]
[352267638,1739021455316,-500.0,0.0001178,2]
[352267640,1739021455326,-664.27,0.0001178,2]
[352267642,1739021455335,-17852.05,0.0001178,2]
[352267644,1739021455345,-500.0,0.0001178,2]
[352267646,1739021455354,-2326.35,0.0001178,2]
[352267648,1739021455364,-500.0,0.0001178,2]
[352267650,1739021455373,-883.56,0.0001178,2]
[352267652,1739021455382,-500.0,0.0001178,2]
[352267654,1739021455392,-1712.45,0.0001178,2]
[352267656,1739021455402,-500.0,0.0001178,2]
[352267658,1739021455412,-2233.57,0.0001178,2]
[352267660,1739021455421,-1938.53,0.0001178,2]
[352267662,1739021455431,-500.0,0.0001178,2]
[352267664,1739021455441,-151.0,0.0001178,2]
[352267666,1739021455450,-1315.0,0.0001178,2]
[352267668,1739021455459,-562.05,0.0001178,2]
[352267670,1739021455469,-500.0,0.0001178,2]
[352267672,1739021455479,-500.0,0.0001178,2]
[352267674,1739021455488,-1511.27,0.0001178,2]
[352267676,1739021455498,-150.12,0.0001178,2]
[352267678,1739021455508,-255.06,0.0001178,2]
[352267680,1739021455517,-500.0,0.0001178,2]
[352267682,1739021455527,-500.0,0.0001178,2]
[352267684,1739021455536,-500.0,0.0001178,2]
[352267686,1739021455546,-150.12,0.0001178,2]
[352267688,1739021455555,-500.0,0.0001178,2]
[352267690,1739021455565,-150.26363732,0.0001178,2]
[352267692,1739021455575,-2009.24,0.0001178,2]
[352267694,1739021455585,-201.18285628,0.0001178,2]
[352267697,1739021455596,-2053.52,0.0001178,2]
[352267699,1739021455606,-150.23382603,0.0001178,2]
[352267701,1739021455616,-150.24223196,0.0001178,2]
[352267703,1739021455625,-500.0,0.0001178,2]
[352267705,1739021455635,-150.12,0.0001178,2]
[352267707,1739021455644,-150.12,0.0001178,2]
[352267709,1739021455654,-151.30050247,0.0001178,2]
[352267711,1739021455663,-150.24010201,0.0001178,2]
[352267713,1739021455672,-500.0,0.0001178,2]
[352267715,1739021455682,-710.0,0.0001178,2]
[352267717,1739021455692,-500.0,0.0001178,2]
[352267719,1739021455701,-150.12,0.0001178,2]
[352267721,1739021455711,-150.12,0.0001178,2]
[352267723,1739021455722,-500.0,0.0001178,2]
[352267725,1739021455731,-500.0,0.0001178,2]
[352267727,1739021455741,-150.12,0.0001178,2]
[352267729,1739021455751,-3576.31,0.0001178,2]
[352267731,1739021455760,-150.12,0.0001178,2]
[352267733,1739021455769,-150.12,0.0001178,2]
[352267734,1739021455778,-543.96,0.0001178,2]
[352267735,1739021455788,-3988.64,0.0001178,2]
[352267736,1739021455797,-500.0,0.0001178,2]
[352267737,1739021455806,-1605.02,0.0001178,2]
[352267738,1739021455815,-892.81,0.0001178,2]
[352267740,1739021455825,-500.0,0.0001178,2]
[352267742,1739021455835,-3928.7,0.0001178,2]
[352267744,1739021455846,-9707.2,0.0001178,2]
[352267746,1739021455855,-500.0,0.0001178,2]
[352267748,1739021455865,-461.90669429,0.0001178,2]
[352267774,1739021456101,-354.7727591,0.00010822,2]
[352267776,1739021456111,-796.58150512,0.00010958,2]
[352267779,1739021456124,-521.37999999,0.00010958,2]
[352269125,1739021487313,-600.0,0.00015,30]
[352269126,1739021490832,1000.0,0.00014,30]
[352269148,1739022632593,-1195.1999999,9.685e-05,2]
[352269149,1739022632605,-3735.3724087,9.685e-05,2]
[352269150,1739022632616,-69.4275914,9.685e-05,2]
[352269151,1739022632627,-5000.0,9.783e-05,2]
[352269152,1739022632636,-300.0,9.881e-05,2]
[352269153,1739022632645,-22540.1123649,9.882e-05,2]
[352269154,1739022632655,-839.41005687,0.00010557,2]
[352269155,1739022632664,-162.10351675,0.00010857,2]
[352269157,1739022632676,-189.04637734,0.00010858,2]
[352269159,1739022632685,-420.0,0.00010869,2]
[352269161,1739022632695,-507.98663694,0.00010873,2]
[352269163,1739022632704,-501.09183101,0.00010873,2]
[352269165,1739022632714,-507.00908022,0.00010873,2]
[352269167,1739022632723,-500.0,0.00010873,2]
[352269169,1739022632732,-502.63900238,0.00010873,2]
[352269171,1739022632741,-500.0,0.00010873,2]
[352269173,1739022632750,-585.45216601,0.00010873,2]
[352269175,1739022632759,-500.0,0.00010873,2]
[352269177,1739022632769,-500.0,0.00010873,2]
[352269179,1739022632778,-256.56217126,0.00010873,2]
[352269181,1739022632787,-310.64335196,0.00010873,2]
[352269183,1739022632797,-199.76408526,0.00010899,2]
[352269184,1739022632807,-500.0,0.00010899,2]
[352269186,1739022632817,-500.0,0.00010899,2]
[352269188,1739022632826,-351.36062801,0.00010899,2]
[352269190,1739022632835,-500.0,0.00010899,2]
[352269192,1739022632845,-500.0,0.00010899,2]
[352269194,1739022632855,-217.44993648,0.00010899,2]
[352269196,1739022632864,-500.0,0.00010899,2]
[352269198,1739022632873,-500.0,0.00010899,2]
[352269200,1739022632882,-500.0,0.00010899,2]
[352269201,1739022632892,-500.0,0.00010899,2]
[352269202,1739022632902,-500.0,0.00010899,2]
[352269203,1739022632911,-500.0,0.00010899,2]
[352269205,1739022632920,-598.69009281,0.00010899,2]
[352269207,1739022632929,-384.17311733,0.00010899,2]
[352269209,1739022632939,-500.0,0.00010899,2]
[352269211,1739022632948,-500.0,0.00010899,2]
[352269213,1739022632957,-500.0,0.00010899,2]
[352269215,1739022632967,-500.0,0.00010899,2]
[352269216,1739022632976,-500.0,0.00010899,2]
[352269218,1739022632985,-500.0,0.00010899,2]
[352269220,1739022632994,-500.0,0.00010899,2]
[352269222,1739022633004,-500.0,0.00010899,2]
[352269224,1739022633013,-500.0,0.00010899,2]
[352269226,1739022633023,-500.0,0.00010899,2]
[352269228,1739022633033,-500.0,0.00010899,2]
[352269230,1739022633042,-500.0,0.00010899,2]
[352269232,1739022633051,-295.43344489,0.00010899,2]
[352269234,1739022633063,-500.0,0.00010899,2]
[352269236,1739022633073,-188.46240476,0.00010899,2]
[352269238,1739022633082,-435.14621001,0.00010899,2]
[352269240,1739022633095,-64.85378999,0.00010899,2]
[352269242,1739022633104,-1625.95705425,0.000109,2]
[352269342,1739022638532,-719076.12618133,0.000109,2]
[352269343,1739022638542,-153.0,0.000109,2]
[352269345,1739022638551,-506.07222546,0.00010958,2]
[352269347,1739022638562,-509.88848356,0.00010958,2]
[352269349,1739022638572,-500.0,0.00010958,2]
[352269351,1739022638581,-410.87524537,0.00010958,2]
[352269352,1739022638591,-500.0,0.00010958,2]
[352269354,1739022638602,-500.0,0.00010958,2]
[352269356,1739022638611,-500.0,0.00010958,2]
[352269358,1739022638620,-500.0,0.00010958,2]
[352269360,1739022638630,-500.0,0.00010958,2]
[352269362,1739022638641,-500.0,0.00010958,2]
[352269364,1739022638650,-500.0,0.00010958,2]
[352269365,1739022638660,-500.0,0.00010958,2]
[352269367,1739022638671,-500.0,0.00010958,2]
[352269369,1739022638683,-500.0,0.00010958,2]
[352269371,1739022638695,-458.35517356,0.00010958,2]
[352269375,1739022638707,-500.0,0.00010958,2]
[352269379,1739022638720,-500.0,0.00010958,2]
[352269383,1739022638730,-934.48,0.00010958,2]
[352269386,1739022638739,-500.0,0.00010958,2]
[352269389,1739022638749,-500.0,0.00010958,2]
[352269391,1739022638758,-500.0,0.00010958,2]
[352269393,1739022638767,-399.05238333,0.00010958,2]
[352269395,1739022638776,-500.0,0.00010958,2]
[352269396,1739022638786,-500.0,0.00010958,2]
[352269398,1739022638795,-500.0,0.00010958,2]
[352269400,1739022638804,-500.0,0.00010958,2]
[352269402,1739022638815,-500.0,0.00010958,2]
[352269404,1739022638825,-500.0,0.00010958,2]
[352269406,1739022638835,-389.98335779,0.00010958,2]
[352269408,1739022638844,-500.0,0.00010958,2]
[352269409,1739022638853,-500.0,0.00010958,2]
[352269411,1739022638862,-500.0,0.00010958,2]
[352269413,1739022638872,-749.51,0.00010958,2]
[352269415,1739022638882,-500.0,0.00010958,2]
[352269417,1739022638891,-500.0,0.00010958,2]
[352269419,1739022638900,-500.0,0.00010958,2]
[352269421,1739022638910,-500.0,0.00010958,2]
[352269423,1739022638919,-500.0,0.00010958,2]
[352269425,1739022638928,-500.0,0.00010958,2]
[352269427,1739022638938,-500.0,0.00010958,2]
[352269428,1739022638947,-500.0,0.00010958,2]
[352269430,1739022638956,-500.0,0.00010958,2]
[352269432,1739022638965,-500.0,0.00010958,2]
[352269434,1739022638975,-500.0,0.00010958,2]
[352269435,1739022638984,-500.0,0.00010958,2]
[352269437,1739022638993,-500.0,0.00010958,2]
[352269439,1739022639003,-500.0,0.00010958,2]
[352269441,1739022639013,-500.0,0.00010958,2]
[352269443,1739022639022,-500.0,0.00010958,2]
[352269445,1739022639032,-1338.85,0.00010958,2]
[352269447,1739022639041,-500.0,0.00010958,2]
[352269449,1739022639051,-500.0,0.00010958,2]
[352269451,1739022639060,-500.0,0.00010958,2]
[352269453,1739022639069,-500.0,0.00010958,2]
[352269455,1739022639079,-460.53401954,0.00010958,2]
[352269456,1739022639088,-500.0,0.00010958,2]
[352269458,1739022639096,-1356.36,0.00010958,2]
[352269460,1739022639106,-500.0,0.00010958,2]
[352269462,1739022639115,-500.0,0.00010958,2]
[352269464,1739022639125,-500.0,0.00010958,2]
[352269466,1739022639134,-500.0,0.00010958,2]
[352269467,1739022639144,-577.01,0.00010958,2]
[352269468,1739022639152,-691.28,0.00010958,2]
[352269469,1739022639162,-500.0,0.00010958,2]
[352269471,1739022639172,-500.0,0.00010958,2]
[352269473,1739022639181,-500.0,0.00010958,2]
[352269475,1739022639191,-503.49486909,0.00010958,2]
[352269477,1739022639200,-500.0,0.00010958,2]
[352269479,1739022639209,-500.0,0.00010958,2]
[352269480,1739022639219,-438.53863776,0.00010958,2]
[352269482,1739022639228,-500.0,0.00010958,2]
[352269484,1739022639237,-500.0,0.00010958,2]
[352269486,1739022639249,-500.0,0.00010958,2]
[352269488,1739022639258,-825.14,0.00010958,2]
[352269490,1739022639268,-613.11,0.00010958,2]
[352269492,1739022639277,-500.0,0.00010958,2]
[352269494,1739022639287,-500.0,0.00010958,2]
[352269496,1739022639296,-500.0,0.00010958,2]
[352269498,1739022639306,-500.0,0.00010958,2]
[352269500,1739022639316,-500.0,0.00010958,2]
[352269502,1739022639325,-637.33,0.00010958,2]
[352269503,1739022639334,-563.66,0.00010958,2]
[352269505,1739022639344,-500.0,0.00010958,2]
[352269507,1739022639353,-500.0,0.00010958,2]
[352269509,1739022639362,-500.0,0.00010958,2]
[352269511,1739022639371,-500.0,0.00010958,2]
[352269513,1739022639381,-500.0,0.00010958,2]
[352269515,1739022639390,-500.0,0.00010958,2]
[352269517,1739022639399,-500.0,0.00010958,2]
[352269519,1739022639408,-1377.04,0.00010958,2]
[352269520,1739022639418,-1282.91,0.00010958,2]
[352269522,1739022639427,-988.86,0.00010958,2]
[352269524,1739022639435,-500.0,0.00010958,2]
[352269526,1739022639444,-500.0,0.00010958,2]
[352269528,1739022639454,-500.0,0.00010958,2]
[352269530,1739022639463,-500.0,0.00010958,2]
[352269532,1739022639472,-500.0,0.00010958,2]
[352269534,1739022639480,-924.41,0.00010958,2]
[352269536,1739022639490,-260.02934263,0.00010958,2]
[352269537,1739022639500,-534.44,0.00010958,2]
[352269539,1739022639509,-500.0,0.00010958,2]
[352269541,1739022639518,-500.0,0.00010958,2]
[352269543,1739022639527,-500.0,0.00010958,2]
[352269545,1739022639537,-500.0,0.00010958,2]
[352269547,1739022639546,-656.65,0.00010958,2]
[352269549,1739022639556,-500.0,0.00010958,2]
[352269551,1739022639566,-500.0,0.00010958,2]
[352269553,1739022639575,-500.0,0.00010958,2]
[352269555,1739022639588,-500.0,0.00010958,2]
[352269557,1739022639597,-500.0,0.00010958,2]
[352269558,1739022639607,-500.0,0.00010958,2]
[352269560,1739022639616,-500.0,0.00010958,2]
[352269562,1739022639625,-500.0,0.00010958,2]
[352269564,1739022639634,-500.0,0.00010958,2]
[352269566,1739022639644,-243.74158017,0.00010958,2]
[352269568,1739022639654,-500.0,0.00010958,2]
[352269570,1739022639664,-500.0,0.00010958,2]
[352269572,1739022639676,-289.81833978,0.00010958,2]
[352269574,1739022639686,-500.0,0.00010958,2]
[352269575,1739022639695,-500.0,0.00010958,2]
[352269577,1739022639705,-500.0,0.00010958,2]
[352269579,1739022639715,-500.0,0.00010958,2]
[352269581,1739022639725,-500.0,0.00010958,2]
[352269583,1739022639735,-768.31,0.00010958,2]
[352269585,1739022639744,-1127.59,0.00010958,2]
[352269587,1739022639754,-500.0,0.00010958,2]
[352269589,1739022639764,-500.0,0.00010958,2]
[352269591,1739022639773,-737.5,0.00010958,2]
[352269593,1739022639782,-496.5739858,0.00010958,2]
[352269594,1739022639792,-500.0,0.00010958,2]
[352269596,1739022639801,-500.0,0.00010958,2]
[352269598,1739022639812,-238.68634286,0.00010958,2]
[352269600,1739022639821,-500.0,0.00010958,2]
[352269602,1739022639830,-500.0,0.00010958,2]
[352269604,1739022639840,-500.0,0.00010958,2]
[352269606,1739022639850,-500.0,0.00010958,2]
[352269608,1739022639859,-500.0,0.00010958,2]
[352269610,1739022639869,-500.0,0.00010958,2]
[352269612,1739022639879,-500.0,0.00010958,2]
[352269614,1739022639889,-500.0,0.00010958,2]
[352269616,1739022639898,-500.0,0.00010958,2]
[352269617,1739022639907,-500.0,0.00010958,2]
[352269619,1739022639917,-743.16,0.00010958,2]
[352269621,1739022639926,-500.0,0.00010958,2]
[352269623,1739022639936,-500.0,0.00010958,2]
[352269625,1739022639946,-500.0,0.00010958,2]
[352269627,1739022639955,-500.0,0.00010958,2]
[352269629,1739022639964,-482.67531648,0.00010958,2]
[352269631,1739022639974,-500.0,0.00010958,2]
[352269646,1739022639983,-500.0,0.00010958,2]
[352269648,1739022640152,-500.0,0.00010958,2]
[352269650,1739022640163,-500.0,0.00010958,2]
[352269652,1739022640172,-222.47802965,0.00010958,2]
[352269654,1739022640182,-500.0,0.00010958,2]
[352269656,1739022640191,-975.04,0.00010958,2]
[352269657,1739022640200,-4282.25,0.00010958,2]
[352269658,1739022640210,-500.0,0.00010958,2]
[352269659,1739022640219,-503.37826417,0.00010958,2]
[352269661,1739022640228,-500.0,0.00010958,2]
[352269663,1739022640238,-500.0,0.00010958,2]
[352269665,1739022640248,-500.0,0.00010958,2]